[Event "V Copa Marcel Duchamp 2022"]
[Site "Montevideo"]
[Date "2022.02.16"]
[Round "6.22"]
[White "Vieira, Alexandre Letizio"]
[Black "Pichuaga, Juan Pablo"]
[Result "0-1"]
[ECO "A45"]
[WhiteElo "1719"]
[BlackElo "2030"]
[Annotator "ChessBase"]
[PlyCount "104"]
[EventDate "2022.02.12"]
[EventCountry "URU"]
[SourceTitle "playchess.com"]
[Source "ChessBase"]
[SourceQuality "1"]
[TimeControl "5400+30"]

1. d4 {[%emt 0:00:30]} Nf6 {[%emt 0:02:42]} 2. Bf4 {[%emt 0:00:00]} g6 {[%emt 0:00:13]} 3. e3 {[%emt 0:00:00]} Bg7 {[%emt 0:00:10]} 4. Nf3 {[%emt 0:00:04]} d6 {[%emt 0:00:06]} 5. h3 {[%emt 0:00:28]} O-O {[%emt 0:00:14]} 6. c3 {[%emt 0:00:04]} Nbd7 {[%emt 0:00:12]} 7. Nbd2 {[%emt 0:00:15]} a6 {[%emt 0:01:02]} 8. a4 {[%emt 0:00:07]} b6 {[%emt 0:06:14]} 9. Be2 {[%emt 0:00:08]} Bb7 {[%emt 0:00:06]} 10. O-O {[%emt 0:00:05]} c5 {[%emt 0:05:51]} 11. Re1 {[%emt 0:01:18]} Qb8 {[%emt 0:08:41]} 12. Bh2 {[%emt 0:04:01]} Bc6 {[%emt 0:01:27]} 13. b4 {[%emt 0:01:32]} cxb4 {[%emt 0:14:00]} 14. cxb4 {[%emt 0:00:13]} b5 {[%emt 0:00:16]} 15. a5 {[%emt 0:04:36]} Ra7 {[%emt 0:01:11]} 16. Qb3 {[%emt 0:02:39]} Rc7 {[%emt 0:01:43]} 17. Rac1 {[%emt 0:00:31]} Rfc8 {[%emt 0:01:04]} 18. Bd3 {[%emt 0:02:26]} Bb7 {[%emt 0:04:15]} 19. Rxc7 {[%emt 0:12:35]} Qxc7 {[%emt 0:01:34]} 20. e4 {[%emt 0:00:34]} Qc3 {[%emt 0:03:22]} 21. Qb1 {[%emt 0:00:31]} Ne8 {[%emt 0:03:49]} 22. d5 {[%emt 0:02:25]} Qa3 {[%emt 0:05:09]} 23. Qb3 {[%emt 0:02:12]} Qxb3 {[%emt 0:01:11]} 24. Nxb3 {[%emt 0:00:08]} Bc3 {[%emt 0:00:16]} 25. Rc1 {[%emt 0:00:30]} Bxb4 {[%emt 0:00:52]} 26. Rxc8 {[%emt 0:00:07]} Bxc8 {[%emt 0:00:08]} 27. Bf4 {[%emt 0:00:30]} Nc5 {[%emt 0:00:28]} 28. Nxc5 {[%emt 0:00:36]} dxc5 {[%emt 0:01:18]} 29. Bd2 {[%emt 0:00:14]} Bxd2 {[%emt 0:03:05]} 30. Nxd2 {[%emt 0:00:06]} Nd6 {[%emt 0:00:19]} 31. e5 {[%emt 0:02:34]} Nb7 {[%emt 0:06:45]} 32. Ne4 {[%emt 0:00:16]} c4 {[%emt 0:00:31]} 33. Be2 {[%emt 0:01:06]} Kf8 {[%emt 0:06:51]} 34. Kf1 {[%emt 0:00:41]} Bf5 {[%emt 0:01:58]} 35. Nc3 {[%emt 0:02:03]} Nxa5 {[%emt 0:01:00]} 36. g4 {[%emt 0:00:12]} Bd3 {[%emt 0:01:37]} 37. Ke1 {[%emt 0:00:53]} Bxe2 {[%emt 0:01:22]} 38. Kxe2 {[%emt 0:00:51]} Nb3 {[%emt 0:02:24]} 39. f4 {[%emt 0:00:44]} Nc5 {[%emt 0:00:21]} 40. Ke3 {[%emt 0:00:40]} Ke8 {[%emt 0:05:34]} 41. h4 {[%emt 0:00:09]} Nb3 {[%emt 0:01:57]} 42. h5 {[%emt 0:00:10]} gxh5 {[%emt 0:01:02]} 43. gxh5 {[%emt 0:00:05]} h6 {[%emt 0:02:19]} 44. f5 {[%emt 0:02:32]} Nc5 {[%emt 0:02:48]} 45. Kd4 {[%emt 0:00:41]} Nd7 {[%emt 0:01:23]} 46. e6 {[%emt 0:01:46]} Nf6 {[%emt 0:00:32]} 47. Kc5 {[%emt 0:01:50]} fxe6 {[%emt 0:00:26]} 48. fxe6 {[%emt 0:00:16]} Nxh5 {[%emt 0:00:30]} 49. Kb6 {[%emt 0:00:17]} Nf4 {[%emt 0:00:51]} 50. Kxa6 {[%emt 0:00:11]} b4 {[%emt 0:00:10]} 51. Nb5 {[%emt 0:00:23]} Nxd5 {[%emt 0:00:15]} 52. Nd4 {[%emt 0:00:14]} b3 {[%emt 0:00:14]} 0-1

[Event "V Copa Marcel Duchamp 2022"]
[Site "Montevideo"]
[Date "2022.02.16"]
[Round "6.24"]
[White "Garcia, Luis E."]
[Black "Cordero, Daniela"]
[Result "1-0"]
[ECO "A20"]
[WhiteElo "2192"]
[BlackElo "2011"]
[Annotator "ChessBase"]
[PlyCount "101"]
[EventDate "2022.02.12"]
[EventCountry "URU"]
[SourceTitle "playchess.com"]
[Source "ChessBase"]
[SourceQuality "1"]
[TimeControl "5400+30"]

1. c4 {[%emt 0:00:08]} e5 {[%emt 0:00:32]} 2. d3 {[%emt 0:00:21]} Nf6 {[%emt 0:02:00]} 3. g3 {[%emt 0:00:15]} Nc6 {[%emt 0:01:56]} 4. Bg2 {[%emt 0:00:13]} Bb4+ {[%emt 0:00:49]} 5. Bd2 {[%emt 0:00:10]} Be7 {[%emt 0:00:34]} 6. Nc3 {[%emt 0:00:49]} O-O {[%emt 0:00:29]} 7. a3 {[%emt 0:01:39]} a5 {[%emt 0:02:04]} 8. e4 {[%emt 0:04:53]} d6 {[%emt 0:01:34]} 9. Nge2 {[%emt 0:00:16]} Ne8 {[%emt 0:01:47]} 10. O-O {[%emt 0:00:24]} f5 {[%emt 0:02:05]} 11. f4 {[%emt 0:00:26]} fxe4 {[%emt 0:13:05]} 12. dxe4 exf4 {[%emt 0:00:29]} 13. Bxf4 {[%emt 0:02:53]} Nf6 {[%emt 0:07:51]} 14. Qc2 {[%emt 0:04:09]} Be6 {[%emt 0:05:55]} 15. Nd5 {[%emt 0:00:31]} Qc8 {[%emt 0:03:16]} 16. b4 {[%emt 0:06:29]} axb4 {[%emt 0:02:31]} 17. Nxe7+ {[%emt 0:03:23]} Nxe7 {[%emt 0:00:07]} 18. axb4 {[%emt 0:00:17]} Rxa1 {[%emt 0:01:10]} 19. Rxa1 {[%emt 0:00:06]} Bh3 {[%emt 0:01:50]} 20. Qd3 {[%emt 0:07:58]} Bxg2 {[%emt 0:13:03]} 21. Kxg2 {[%emt 0:02:29]} Ng6 {[%emt 0:00:16]} 22. Rf1 {[%emt 0:03:34]} Qe6 {[%emt 0:10:38]} 23. Nc3 {[%emt 0:03:09]} Re8 {[%emt 0:11:25]} 24. Re1 {[%emt 0:05:45]} Nh5 {[%emt 0:04:02]} 25. Bd2 {[%emt 0:05:12]} Ne5 {[%emt 0:01:18]} 26. Qe2 {[%emt 0:02:25]} Nf6 {[%emt 0:05:46]} 27. Nd5 {[%emt 0:01:00]} Qf7 {[%emt 0:02:05]} 28. Rf1 {[%emt 0:11:52]} c6 {[%emt 0:00:44]} 29. Nxf6+ {[%emt 0:01:12]} gxf6 {[%emt 0:00:05]} 30. c5 {[%emt 0:06:07]} d5 {[%emt 0:02:43]} 31. exd5 {[%emt 0:00:28]} Qxd5+ {[%emt 0:00:06]} 32. Kg1 {[%emt 0:03:40]} Qd4+ {[%emt 0:01:02]} 33. Qf2 {[%emt 0:07:45]} Qxf2+ {[%emt 0:02:57]} 34. Rxf2 {[%emt 0:00:08]} Kf7 {[%emt 0:00:17]} 35. Bc3 {[%emt 0:00:46]} Ke6 {[%emt 0:00:08]} 36. Bxe5 {[%emt 0:00:21]} fxe5 {[%emt 0:00:10]} 37. Rd2 {[%emt 0:00:32]} Re7 {[%emt 0:00:24]} 38. Kf2 {[%emt 0:00:48]} Kf5 {[%emt 0:01:28]} 39. Kf3 {[%emt 0:01:44]} h5 {[%emt 0:00:26]} 40. Rd6 {[%emt 0:02:12]} e4+ {[%emt 0:00:45]} 41. Ke3 {[%emt 0:00:11]} Rh7 {[%emt 0:00:33]} 42. Rd8 {[%emt 0:01:45]} Re7 {[%emt 0:00:31]} 43. Rd4 {[%emt 0:02:26]} Kg4 {[%emt 0:00:28]} 44. Rxe4+ {[%emt 0:02:29]} Rxe4+ {[%emt 0:00:01]} 45. Kxe4 {[%emt 0:00:08]} Kh3 {[%emt 0:00:10]} 46. Kf3 {[%emt 0:00:11]} Kxh2 {[%emt 0:00:06]} 47. g4 {[%emt 0:00:13]} hxg4+ {[%emt 0:00:08]} 48. Kxg4 {[%emt 0:00:07]} Kg2 {[%emt 0:00:05]} 49. Kf4 {[%emt 0:00:18]} Kf2 {[%emt 0:00:05]} 50. Ke5 {[%emt 0:00:12]} Ke3 51. Kd6 {[%emt 0:00:16]} 1-0

[Event "V Copa Marcel Duchamp 2022"]
[Site "Montevideo"]
[Date "2022.02.16"]
[Round "6.25"]
[White "Siddeley, Hugh"]
[Black "Torales, Agustin"]
[Result "0-1"]
[ECO "A48"]
[WhiteElo "2000"]
[BlackElo "1682"]
[Annotator "ChessBase"]
[PlyCount "80"]
[EventDate "2022.02.12"]
[EventCountry "URU"]
[SourceTitle "playchess.com"]
[Source "ChessBase"]
[SourceQuality "1"]
[TimeControl "5400+30"]

1. d4 {[%emt 0:05:55]} Nf6 {[%emt 0:00:08]} 2. Nf3 {[%emt 0:00:05]} g6 {[%emt 0:00:07]} 3. Bf4 {[%emt 0:00:07]} Bg7 {[%emt 0:00:08]} 4. e3 {[%emt 0:00:05]} O-O {[%emt 0:00:05]} 5. Be2 {[%emt 0:00:07]} d6 {[%emt 0:00:14]} 6. O-O {[%emt 0:00:17]} Nbd7 {[%emt 0:00:16]} 7. c3 {[%emt 0:00:42]} Qe8 {[%emt 0:00:46]} 8. h3 {[%emt 0:00:25]} e5 {[%emt 0:03:20]} 9. Bh2 {[%emt 0:00:08]} Qe7 {[%emt 0:01:22]} 10. a4 {[%emt 0:02:35]} a5 {[%emt 0:00:08]} 11. Na3 {[%emt 0:00:16]} Ne4 {[%emt 0:03:54]} 12. Nc4 {[%emt 0:02:29]} exd4 {[%emt 0:01:53]} 13. cxd4 {[%emt 0:05:35]} Re8 {[%emt 0:07:25]} 14. Qc2 {[%emt 0:04:12]} Nb8 {[%emt 0:02:20]} 15. Rac1 {[%emt 0:05:46]} Nc6 {[%emt 0:01:16]} 16. Ncd2 {[%emt 0:06:38]} Nxd2 {[%emt 0:06:43]} 17. Qxd2 {[%emt 0:00:43]} Nb4 {[%emt 0:03:56]} 18. Ne1 {[%emt 0:07:01]} Bf5 {[%emt 0:04:27]} 19. g4 {[%emt 0:21:20]} Be4 {[%emt 0:01:39]} 20. f3 {[%emt 0:00:42]} Bc6 {[%emt 0:00:09]} 21. e4 {[%emt 0:02:38]} Bxa4 {[%emt 0:02:30]} 22. Ng2 {[%emt 0:05:01]} c5 {[%emt 0:10:13]} 23. d5 {[%emt 0:07:19]} Bd4+ {[%emt 0:00:09]} 24. Kh1 {[%emt 0:00:09]} Nxd5 {[%emt 0:02:45]} 25. b3 {[%emt 0:08:10]} Bd7 {[%emt 0:00:07]} 26. exd5 {[%emt 0:00:35]} Qxe2 {[%emt 0:00:10]} 27. Qxe2 {[%emt 0:00:30]} Rxe2 {[%emt 0:00:06]} 28. Bxd6 {[%emt 0:00:08]} b6 {[%emt 0:00:10]} 29. Bc7 {[%emt 0:00:55]} b5 {[%emt 0:02:40]} 30. Nf4 {[%emt 0:01:15]} Rb2 {[%emt 0:00:53]} 31. Rb1 {[%emt 0:00:15]} Rxb1 {[%emt 0:01:10]} 32. Rxb1 {[%emt 0:00:01]} a4 {[%emt 0:00:06]} 33. Ne2 {[%emt 0:00:53]} Bf6 {[%emt 0:02:06]} 34. Nc1 {[%emt 0:00:57]} a3 {[%emt 0:00:37]} 35. Na2 {[%emt 0:00:10]} Re8 {[%emt 0:00:04]} 36. Bd6 {[%emt 0:00:29]} Bd4 {[%emt 0:00:24]} 37. Rc1 {[%emt 0:01:03]} Re2 {[%emt 0:01:43]} 38. Nc3 {[%emt 0:00:41]} Bxc3 {[%emt 0:00:36]} 39. Rxc3 {[%emt 0:00:06]} a2 {[%emt 0:00:03]} 40. Rc1 {[%emt 0:01:48]} Rb2 {[%emt 0:00:06]} 0-1

[Event "V Copa Marcel Duchamp 2022"]
[Site "Montevideo"]
[Date "2022.02.16"]
[Round "6.26"]
[White "Escofet, Jaime"]
[Black "Lavandeira, Juan Bautista"]
[Result "0-1"]
[ECO "B03"]
[WhiteElo "1981"]
[BlackElo "1516"]
[Annotator "ChessBase"]
[PlyCount "66"]
[EventDate "2022.02.12"]
[EventCountry "URU"]
[SourceTitle "playchess.com"]
[Source "ChessBase"]
[SourceQuality "1"]
[TimeControl "5400+30"]

1. e4 {[%emt 0:00:03]} Nf6 {[%emt 0:00:26]} 2. e5 {[%emt 0:00:18]} Nd5 {[%emt 0:00:06]} 3. d4 {[%emt 0:00:11]} d6 {[%emt 0:00:06]} 4. c4 {[%emt 0:00:17]} Nb6 {[%emt 0:00:06]} 5. exd6 {[%emt 0:00:06]} exd6 {[%emt 0:00:08]} 6. Nc3 {[%emt 0:00:22]} Be7 {[%emt 0:00:08]} 7. Qf3 {[%emt 0:00:22]} O-O {[%emt 0:01:27]} 8. Be3 {[%emt 0:00:06]} Nc6 {[%emt 0:00:09]} 9. O-O-O {[%emt 0:00:09]} Bf6 {[%emt 0:01:16]} 10. Bd3 {[%emt 0:00:22]} Nb4 {[%emt 0:04:55]} 11. Be2 {[%emt 0:01:28]} g6 {[%emt 0:07:29]} 12. a3 {[%emt 0:01:08]} Nc6 {[%emt 0:02:32]} 13. Nh3 {[%emt 0:05:46]} Be6 {[%emt 0:06:28]} 14. b3 {[%emt 0:06:35]} d5 {[%emt 0:01:55]} 15. c5 {[%emt 0:00:51]} Nc8 {[%emt 0:01:09]} 16. Nf4 {[%emt 0:00:34]} N8e7 {[%emt 0:02:41]} 17. h4 {[%emt 0:08:11]} b6 {[%emt 0:06:56]} 18. h5 {[%emt 0:15:49]} g5 {[%emt 0:06:39]} 19. Nxe6 {[%emt 0:19:32]} fxe6 {[%emt 0:00:08]} 20. Qg4 {[%emt 0:00:30]} Nf5 {[%emt 0:03:38]} 21. Na4 {[%emt 0:03:02]} h6 {[%emt 0:06:51]} 22. Rhe1 {[%emt 0:00:35]} Qd7 {[%emt 0:14:18]} 23. Kb1 {[%emt 0:05:44]} Na5 {[%emt 0:03:00]} 24. Ka2 {[%emt 0:00:23]} Rab8 {[%emt 0:01:06]} 25. Rb1 {[%emt 0:14:04]} Nxb3 {[%emt 0:22:11]} 26. Rxb3 {[%emt 0:00:07]} Qxa4 {[%emt 0:00:30]} 27. Bb5 {[%emt 0:00:30]} Qa5 {[%emt 0:00:30]} 28. Bd7 {[%emt 0:00:30]} Qxe1 {[%emt 0:03:48]} 29. Bxe6+ {[%emt 0:07:36]} Kh8 {[%emt 0:00:30]} 30. Qxf5 {[%emt 0:00:28]} Qe2+ {[%emt 0:00:29]} 31. Ka1 {[%emt 0:03:49]} Qd1+ {[%emt 0:01:43]} 32. Ka2 {[%emt 0:00:23]} Bxd4 {[%emt 0:01:42]} 33. Bxd4+ {[%emt 0:00:17]} Qxd4 {[%emt 0:00:04]} 0-1

[Event "V Copa Marcel Duchamp 2022"]
[Site "Montevideo"]
[Date "2022.02.16"]
[Round "6.30"]
[White "Amaral, Francisco"]
[Black "Nejanky, Maisa"]
[Result "0-1"]
[ECO "A28"]
[WhiteElo "1672"]
[BlackElo "1948"]
[Annotator "ChessBase"]
[PlyCount "72"]
[EventDate "2022.02.12"]
[EventCountry "URU"]
[SourceTitle "playchess.com"]
[Source "ChessBase"]
[SourceQuality "1"]
[TimeControl "5400+30"]

1. c4 {[%emt 0:00:02]} e5 {[%emt 0:09:23]} 2. Nc3 {[%emt 0:00:24]} Nf6 {[%emt 0:00:15]} 3. Nf3 {[%emt 0:00:25]} Nc6 {[%emt 0:00:16]} 4. e3 {[%emt 0:05:06]} d5 {[%emt 0:09:25]} 5. cxd5 {[%emt 0:03:16]} Nxd5 {[%emt 0:00:08]} 6. a3 {[%emt 0:00:06]} Be6 {[%emt 0:08:14]} 7. Bb5 {[%emt 0:02:17]} Nxc3 {[%emt 0:07:54]} 8. bxc3 {[%emt 0:00:37]} Bd6 {[%emt 0:06:41]} 9. Qc2 {[%emt 0:03:25]} O-O {[%emt 0:06:06]} 10. d3 {[%emt 0:11:33]} Na5 {[%emt 0:09:44]} 11. c4 {[%emt 0:00:52]} c6 {[%emt 0:04:14]} 12. Ba4 {[%emt 0:00:08]} b5 {[%emt 0:01:27]} 13. Bb3 {[%emt 0:04:21]} e4 {[%emt 0:12:35]} 14. dxe4 {[%emt 0:02:39]} bxc4 {[%emt 0:11:44]} 15. Ba2 {[%emt 0:06:37]} Nb3 {[%emt 0:00:12]} 16. Bxb3 {[%emt 0:00:08]} cxb3 {[%emt 0:00:08]} 17. Qb2 {[%emt 0:00:06]} Qa5+ {[%emt 0:05:56]} 18. Bd2 {[%emt 0:01:18]} Qa6 {[%emt 0:01:02]} 19. Bc3 {[%emt 0:01:23]} f6 {[%emt 0:00:46]} 20. h4 {[%emt 0:01:07]} Rf7 {[%emt 0:03:29]} 21. h5 {[%emt 0:02:40]} h6 {[%emt 0:00:12]} 22. Nd4 {[%emt 0:00:31]} Bc4 {[%emt 0:00:24]} 23. Nf5 {[%emt 0:01:37]} Bf8 {[%emt 0:00:35]} 24. Rh3 {[%emt 0:01:11]} Rd8 {[%emt 0:00:37]} 25. Rg3 {[%emt 0:02:07]} Kh7 {[%emt 0:00:42]} 26. Bb4 {[%emt 0:15:47]} c5 {[%emt 0:00:47]} 27. Bc3 {[%emt 0:00:06]} Qe6 {[%emt 0:00:31]} 28. f3 {[%emt 0:00:30]} Bd3 {[%emt 0:00:30]} 29. Rd1 {[%emt 0:01:46]} c4 {[%emt 0:00:14]} 30. Nd4 {[%emt 0:01:24]} Qd6 {[%emt 0:00:27]} 31. Kf2 {[%emt 0:02:47]} Qxa3 {[%emt 0:00:23]} 32. Ra1 {[%emt 0:04:14]} Qxb2+ {[%emt 0:00:28]} 33. Bxb2 {[%emt 0:00:07]} Bd6 {[%emt 0:00:46]} 34. Rg6 {[%emt 0:00:57]} Be5 {[%emt 0:00:25]} 35. Ra5 {[%emt 0:01:16]} Rc8 {[%emt 0:00:27]} 36. Bc3 {[%emt 0:01:03]} Rb7 {[%emt 0:00:22]} 0-1

[Event "V Copa Marcel Duchamp 2022"]
[Site "Montevideo"]
[Date "2022.02.16"]
[Round "6.31"]
[White "Migens Romero, Juan"]
[Black "Salguero, Rafael"]
[Result "1-0"]
[ECO "B12"]
[WhiteElo "2097"]
[BlackElo "1948"]
[Annotator "ChessBase"]
[PlyCount "65"]
[EventDate "2022.02.12"]
[EventCountry "URU"]
[SourceTitle "playchess.com"]
[Source "ChessBase"]
[SourceQuality "1"]
[TimeControl "5400+30"]

1. e4 {[%emt 0:15:07]} c6 {[%emt 0:00:11]} 2. d4 {[%emt 0:00:07]} d5 {[%emt 0:00:08]} 3. e5 {[%emt 0:00:05]} Bf5 {[%emt 0:00:10]} 4. Nf3 {[%emt 0:00:03]} e6 {[%emt 0:00:15]} 5. Be2 {[%emt 0:00:07]} c5 {[%emt 0:00:16]} 6. c3 {[%emt 0:00:34]} Nc6 {[%emt 0:00:09]} 7. O-O {[%emt 0:00:27]} Nge7 {[%emt 0:00:48]} 8. Nh4 {[%emt 0:00:13]} h6 {[%emt 0:01:16]} 9. Nxf5 {[%emt 0:01:43]} Nxf5 {[%emt 0:00:09]} 10. g4 {[%emt 0:03:05]} Nh4 {[%emt 0:02:18]} 11. Be3 {[%emt 0:06:30]} Qb6 {[%emt 0:04:50]} 12. b3 {[%emt 0:07:05]} cxd4 {[%emt 0:00:42]} 13. cxd4 {[%emt 0:02:49]} Rc8 {[%emt 0:00:47]} 14. f4 {[%emt 0:04:41]} g5 {[%emt 0:07:17]} 15. fxg5 {[%emt 0:11:26]} hxg5 {[%emt 0:00:24]} 16. Nc3 {[%emt 0:04:42]} a6 {[%emt 0:04:03]} 17. Na4 {[%emt 0:01:33]} Qa7 {[%emt 0:03:54]} 18. Rc1 {[%emt 0:05:16]} b5 {[%emt 0:00:46]} 19. Nc5 {[%emt 0:00:41]} Ng6 {[%emt 0:12:23]} 20. a3 {[%emt 0:11:43]} Nf4 {[%emt 0:10:00]} 21. b4 {[%emt 0:05:50]} Bxc5 {[%emt 0:06:56]} 22. Rxc5 {[%emt 0:01:09]} Qe7 {[%emt 0:13:04]} 23. a4 {[%emt 0:03:29]} Na7 {[%emt 0:09:25]} 24. Rxc8+ {[%emt 0:03:57]} Nxc8 {[%emt 0:00:03]} 25. axb5 {[%emt 0:02:11]} axb5 {[%emt 0:01:49]} 26. Bxf4 {[%emt 0:01:32]} gxf4 {[%emt 0:00:08]} 27. Qc2 {[%emt 0:01:46]} Nb6 {[%emt 0:00:27]} 28. Qc6+ {[%emt 0:00:29]} Nd7 {[%emt 0:00:15]} 29. Bxb5 {[%emt 0:00:38]} Qxb4 {[%emt 0:00:33]} 30. Qxd7+ {[%emt 0:01:05]} Kf8 {[%emt 0:00:05]} 31. Qd6+ {[%emt 0:00:10]} Qxd6 {[%emt 0:00:08]} 32. exd6 {[%emt 0:00:07]} Rh3 {[%emt 0:00:43]} 33. Rc1 {[%emt 0:00:37]} 1-0

[Event "V Copa Marcel Duchamp 2022"]
[Site "Montevideo"]
[Date "2022.02.16"]
[Round "6.32"]
[White "Balseca Moreno, Diego"]
[Black "Durante, Aurelio"]
[Result "0-1"]
[ECO "B32"]
[WhiteElo "2269"]
[BlackElo "1944"]
[Annotator "ChessBase"]
[PlyCount "32"]
[EventDate "2022.02.12"]
[EventCountry "URU"]
[SourceTitle "playchess.com"]
[Source "ChessBase"]
[SourceQuality "1"]
[TimeControl "5400+30"]

1. e4 {[%emt 0:00:03]} c5 {[%emt 0:06:08]} 2. Nf3 {[%emt 0:04:52]} Nc6 {[%emt 0:00:04]} 3. d4 {[%emt 0:00:04]} cxd4 {[%emt 0:00:08]} 4. Nxd4 {[%emt 0:00:03]} e5 {[%emt 0:00:09]} 5. Nb5 {[%emt 0:00:05]} a6 {[%emt 0:00:19]} 6. Nd6+ {[%emt 0:00:05]} Bxd6 {[%emt 0:00:07]} 7. Qxd6 {[%emt 0:00:04]} Qf6 {[%emt 0:00:12]} 8. Qa3 {[%emt 0:00:30]} Nge7 {[%emt 0:00:47]} 9. Nc3 {[%emt 0:00:12]} O-O {[%emt 0:01:10]} 10. Be3 {[%emt 0:00:10]} Rb8 {[%emt 0:00:49]} 11. O-O-O {[%emt 0:01:53]} b5 {[%emt 0:05:31]} 12. Qd6 {[%emt 0:01:17]} Qxd6 {[%emt 0:07:12]} 13. Rxd6 {[%emt 0:00:11]} f5 {[%emt 0:01:27]} 14. f3 {[%emt 0:03:31]} Rf6 {[%emt 0:02:21]} 15. Bc5 {[%emt 0:06:54]} Kf7 {[%emt 0:00:47]} 16. Nd5 {[%emt 0:06:50]} Re6 {[%emt 0:00:30]} 0-1

[Event "V Copa Marcel Duchamp 2022"]
[Site "Montevideo"]
[Date "2022.02.16"]
[Round "6.33"]
[White "Dabraccio, Guillermo"]
[Black "Palacio, Enzo"]
[Result "0-1"]
[ECO "D01"]
[WhiteElo "1591"]
[BlackElo "1896"]
[Annotator "NA RC"]
[PlyCount "106"]
[EventDate "2022.02.12"]
[EventCountry "URU"]
[SourceTitle "playchess.com"]
[Source "ChessBase"]
[SourceQuality "1"]
[TimeControl "5400+30"]

{[%evp 10,102,0,-2,32767,-3,0,-13,0,3,32767,0,29,28,41,26,34,20,38,8,54,-14,0,0,-2,0,0,0,23,32767,32767,32767,14,22,17,18,20,1,18,1,32767,0,32767,32767,0,0,0,32767,32767,32767,32767,-81,32767,-162,-157,-154,-160,32767,-141,32767,32767,32767,32767,32767,32767,32767,32767,32767,32767,32767,32767,32767,-168,-164,32767,32767,32767,32767,32767,-241,-191,-162,-178,-183,32767,32767,32767,32767,32767,-303,-347,-381,-303,-563,-645]} 1. d4 {[%emt 0:05:28]} Nf6 {[%emt 0:00:02]} 2. Nc3 {[%emt 0:00:30]} d5 {[%emt 0:00:30]} 3. Bg5 {[%emt 0:00:07]} Nbd7 {[%emt 0:02:39]} 4. Qd3 {[%emt 0:01:37]} h6 5. Bh4 e6 {[%emt 0:04:55]} 6. e4 {[%emt 0:01:54]} dxe4 {[%emt 0:00:10]} 7. Nxe4 {[%emt 0:00:42]} Be7 8. Nxf6+ Nxf6 {[%emt 0:00:10]} 9. Be2 {[%emt 0:11:45]} Qd6 {[%emt 0:09:02]} 10. c3 {[%emt 0:10:51]} a6 {[%emt 0:04:20]} 11. Nf3 O-O {[%emt 0:05:21]} 12. Ne5 {[%emt 0:10:08]} c5 $1 {[%emt 0:08:42]} 13. Nc4 {[%emt 0:00:51]} (13. Bg3 $5 {[%cal Re5g6]}) 13... Qc7 $1 {[%emt 0:04:35]} 14. Bg3 {[%emt 0:00:14]} Qd8 {[%emt 0:08:12]} 15. Rd1 {[%emt 0:08:09]} ({Better is} 15. Bf3 $1 $14) 15... b5 {[%emt 0:04:01]} 16. Qf3 {[%emt 0:19:02]} Nd5 {[%emt 0:00:08]} 17. Ne5 {[%emt 0:02:02]} Bb7 {[%emt 0:10:00]} 18. dxc5 {[%emt 0:00:18]} Qc8 {[%emt 0:00:22]} 19. c6 {[%emt 0:00:07]} Bxc6 {[%emt 0:00:06]} 20. Nxc6 {[%emt 0:00:24]} Qxc6 {[%emt 0:06:06]} 21. O-O {[%emt 0:01:21]} Rac8 {[%emt 0:00:28]} 22. Rfe1 {[%emt 0:04:20]} Bf6 {[%emt 0:12:33]} 23. Bf1 {[%emt 0:03:32]} Qb6 {[%emt 0:04:46]} 24. Qe4 g6 25. h4 {[%emt 0:01:13]} h5 {[%emt 0:01:19]} 26. Bd3 {[%emt 0:03:12]} Rfd8 {[%emt 0:02:38]} 27. Be5 {[%emt 0:01:10]} Qc5 {[%emt 0:02:18]} 28. Qf3 {[%emt 0:05:06]} Bxh4 29. g3 {[%emt 0:00:21]} Bg5 {[%emt 0:05:42]} 30. Kg2 {[%emt 0:00:33]} ({Better is} 30. a4 $15) 30... Ra8 {[%emt 0:04:15]} 31. Rh1 $2 {[%emt 0:01:55] [#]} (31. Be4 $11 {and White is okay.}) 31... Ne3+ $1 {[%emt 0:01:00]} 32. fxe3 {[%emt 0:01:19]} Qxe5 {[%emt 0:01:05]} 33. Rhf1 {[%emt 0:02:49]} Rf8 {[%emt 0:02:26]} 34. Be4 {[%emt 0:00:31]} Rab8 {[%emt 0:01:36]} 35. Rfe1 {[%emt 0:03:15]} Rbd8 {[%emt 0:00:53]} 36. Rd4 {[%emt 0:01:15]} Rxd4 {[%emt 0:02:38]} 37. cxd4 {[%emt 0:00:11]} Qc7 {[%emt 0:00:45]} 38. Re2 {[%emt 0:00:56]} Rc8 {[%emt 0:00:56]} 39. Bd3 {[%emt 0:01:12]} Qd6 {[%emt 0:00:27]} 40. Qf2 {[%emt 0:01:06]} Qd5+ {[%emt 0:00:48]} 41. Qf3 {[%emt 0:00:42]} Qxa2 {[%emt 0:00:25]} 42. Rf2 {[%emt 0:00:04]} Qd5 {[%emt 0:00:36]} 43. Be4 {[%emt 0:00:17]} Qd7 {[%emt 0:00:14]} 44. Bb7 {[%emt 0:00:30]} Rb8 {[%emt 0:00:55]} 45. Bc6 {[%emt 0:00:44]} Qe7 {[%emt 0:00:15]} 46. d5 {[%emt 0:00:17]} exd5 {[%emt 0:00:45]} 47. Bxd5 {[%emt 0:00:13]} Rf8 {[%emt 0:00:02]} 48. b4 {[%emt 0:00:16]} Kg7 {[%emt 0:00:21]} 49. Bb7 {[%emt 0:01:03]} (49. Qe4 {keeps fighting.}) 49... Qxb4 {[%emt 0:00:49]} ({Worse is} 49... Bxe3 50. Re2 $17) 50. Bxa6 {[%emt 0:00:18]} Qc5 {[%emt 0:00:35]} 51. e4 $2 {[%emt 0:01:10]} (51. Qe4) 51... Qc6 $19 {[%emt 0:00:24]} 52. Ra2 {[%emt 0:00:34]} Ra8 {[%emt 0:00:27]} 53. e5 Rxa6 0-1